[Event "MCR rapid mládeže 2023 U16"]
[Site "Harachov, Czech Republic"]
[Date "2023.09.09"]
[Round "2.25"]
[White "Kratka, Tereza"]
[Black "Barteckova, Nikol"]
[Result "1-0"]
[TimeControl "20min+5s/move"]
[WhiteElo "1147"]
[BlackElo "1246"]

1. c4 {[%clk 00:20:08]} {[%emt 00:00:02]} e5 {[%clk 00:20:09]} {[%emt
00:00:01]} 2. Nc3 {[%clk 00:20:10]} {[%emt 00:00:03]} Nc6 {[%clk 00:20:04]}
{[%emt 00:00:11]} 3. Nf3 {[%clk 00:20:13]} {[%emt 00:00:01]} d6 {[%clk
00:19:46]} {[%emt 00:00:23]} 4. g3 {[%clk 00:20:15]} {[%emt 00:00:03]} f5
{[%clk 00:19:42]} {[%emt 00:00:09]} 5. e3 {[%clk 00:19:54]} {[%emt 00:00:26]}
g6 {[%clk 00:19:11]} {[%emt 00:00:37]} 6. Bg2 {[%clk 00:19:54]} {[%emt
00:00:04]} Bg7 {[%clk 00:19:14]} {[%emt 00:00:03]} 7. d3 {[%clk 00:19:45]}
{[%emt 00:00:13]} Nge7 {[%clk 00:18:25]} {[%emt 00:00:54]} 8. Qd2 {[%clk
00:19:16]} {[%emt 00:00:34]} Rb8 {[%clk 00:17:20]} {[%emt 00:01:11]} 9. b3
{[%clk 00:19:00]} {[%emt 00:00:20]} b6 {[%clk 00:17:11]} {[%emt 00:00:14]} 10.
Bb2 {[%clk 00:18:38]} {[%emt 00:00:27]} Bb7 {[%clk 00:17:10]} {[%emt 00:00:07]}
11. Ng5 {[%clk 00:17:04]} {[%emt 00:01:38]} Qd7 {[%clk 00:16:36]} {[%emt
00:00:40]} 12. Nd5 {[%clk 00:16:54]} {[%emt 00:00:14]} Nxd5 {[%clk 00:14:50]}
{[%emt 00:01:50]} 13. Bxd5 {[%clk 00:16:46]} {[%emt 00:00:13]} Nd8 {[%clk
00:12:43]} {[%emt 00:02:13]} 14. Bxb7 {[%clk 00:15:50]} {[%emt 00:01:00]} Rxb7
{[%clk 00:12:47]} {[%emt 00:00:01]} 15. O-O {[%clk 00:15:26]} {[%emt 00:00:29]}
h6 {[%clk 00:12:43]} {[%emt 00:00:09]} 16. Nf3 {[%clk 00:15:18]} {[%emt
00:00:12]} Nc6 {[%clk 00:12:04]} {[%emt 00:00:46]} 17. Rfe1 {[%clk 00:13:49]}
{[%emt 00:01:34]} g5 {[%clk 00:11:44]} {[%emt 00:00:25]} 18. Kg2 {[%clk
00:13:23]} {[%emt 00:00:31]} O-O {[%clk 00:11:25]} {[%emt 00:00:24]} 19. h4
{[%clk 00:12:54]} {[%emt 00:00:34]} g4 {[%clk 00:10:45]} {[%emt 00:00:45]} 20.
Nh2 {[%clk 00:12:13]} {[%emt 00:00:44]} Qf7 {[%clk 00:10:26]} {[%emt 00:00:25]}
21. a3 {[%clk 00:11:10]} {[%emt 00:01:08]} h5 {[%clk 00:10:23]} {[%emt
00:00:08]} 22. Bc1 {[%clk 00:10:28]} {[%emt 00:00:48]} Bh6 {[%clk 00:10:19]}
{[%emt 00:00:09]} 23. Ra2 {[%clk 00:09:34]} {[%emt 00:00:59]} Ne7 {[%clk
00:09:32]} {[%emt 00:00:52]} 24. b4 {[%clk 00:09:01]} {[%emt 00:00:38]} Ng6
{[%clk 00:09:22]} {[%emt 00:00:14]} 25. f3 {[%clk 00:07:29]} {[%emt 00:01:37]}
gxf3+ {[%clk 00:05:56]} {[%emt 00:03:31]} 26. Nxf3 {[%clk 00:07:26]} {[%emt
00:00:08]} f4 {[%clk 00:05:57]} {[%emt 00:00:05]} 27. exf4 {[%clk 00:07:03]}
{[%emt 00:00:28]} exf4 {[%clk 00:05:58]} {[%emt 00:00:04]} 28. Rf1 {[%clk
00:06:46]} {[%emt 00:00:22]} Ne5 {[%clk 00:03:48]} {[%emt 00:02:15]} 29. Nxe5
{[%clk 00:05:36]} {[%emt 00:01:14]} dxe5 {[%clk 00:03:52]} {[%emt 00:00:01]} 30.
Rf3 {[%clk 00:05:07]} {[%emt 00:00:34]} Kh7 {[%clk 00:02:51]} {[%emt 00:01:06]}
31. b5 {[%clk 00:04:49]} {[%emt 00:00:23]} Qg7 {[%clk 00:02:37]} {[%emt
00:00:19]} 32. a4 {[%clk 00:03:01]} {[%emt 00:01:54]} Rf6 {[%clk 00:02:24]}
{[%emt 00:00:17]} 33. Qe2 {[%clk 00:02:27]} {[%emt 00:00:39]} Re6 {[%clk
00:01:46]} {[%emt 00:00:43]} 34. Qe4+ {[%clk 00:02:22]} {[%emt 00:00:10]} Rg6
{[%clk 00:01:29]} {[%emt 00:00:22]} 35. Qxb7 {[%clk 00:01:39]} {[%emt
00:00:48]} Rxg3+ {[%clk 00:01:31]} {[%emt 00:00:04]} 36. Rxg3 {[%clk 00:01:32]}
{[%emt 00:00:12]} Qxg3+ {[%clk 00:01:35]} {[%emt 00:00:01]} 37. Kf1 {[%clk
00:01:29]} {[%emt 00:00:08]} Qxd3+ {[%clk 00:01:34]} {[%emt 00:00:05]} 38. Re2
{[%clk 00:01:22]} {[%emt 00:00:12]} Qh3+ {[%clk 00:01:10]} {[%emt 00:00:28]} 39.
Qg2 {[%clk 00:01:24]} {[%emt 00:00:04]} Qe6 {[%clk 00:00:50]} {[%emt 00:00:24]}
40. Qe4+ {[%clk 00:01:11]} {[%emt 00:00:20]} Kg8 {[%clk 00:00:41]} {[%emt
00:00:10]} 41. Rg2+ {[%clk 00:01:11]} {[%emt 00:00:08]} Kf8 {[%clk 00:00:42]}
{[%emt 00:00:05]} 42. Ba3+ {[%clk 00:01:10]} {[%emt 00:00:06]} Ke8 {[%clk
00:00:30]} {[%emt 00:00:17]} 43. Qc6+ {[%clk 00:01:14]} {[%emt 00:00:01]} Qd7
{[%clk 00:00:33]} {[%emt 00:00:01]} 44. Rg8+ {[%clk 00:01:14]} {[%emt
00:00:05]} Bf8 {[%clk 00:00:28]} {[%emt 00:00:08]} 45. Rxf8# {[%clk 00:01:17]}
{[%emt 00:00:04]} 1-0

[Event "MCR rapid mládeže 2023 U16"]
[Site "Harachov, Czech Republic"]
[Date "2023.09.09"]
[Round "2.26"]
[White "Nova, Anezka"]
[Black "Katasonova, Olga"]
[Result "1-0"]
[TimeControl "20min+5s/move"]
[WhiteElo "1382"]
[BlackElo "1176"]

1. e4 {[%clk 00:20:09]} e5 {[%clk 00:20:09]} {[%emt 00:00:01]} 2. Nf3 {[%clk
00:20:13]} {[%emt 00:00:02]} Nf6 {[%clk 00:20:13]} {[%emt 00:00:01]} 3. Nxe5
{[%clk 00:20:03]} {[%emt 00:00:14]} d6 {[%clk 00:20:17]} {[%emt 00:00:02]} 4.
Nxf7 {[%clk 00:19:28]} {[%emt 00:00:40]} Kxf7 {[%clk 00:20:17]} {[%emt
00:00:05]} 5. d4 {[%clk 00:19:32]} {[%emt 00:00:01]} c6 {[%clk 00:19:30]}
{[%emt 00:00:52]} 6. Nc3 {[%clk 00:17:28]} {[%emt 00:02:09]} Be7 {[%clk
00:18:19]} {[%emt 00:01:15]} 7. Bc4+ {[%clk 00:17:12]} {[%emt 00:00:21]} Be6
{[%clk 00:18:18]} {[%emt 00:00:06]} 8. d5 {[%clk 00:16:11]} {[%emt 00:01:07]}
cxd5 {[%clk 00:17:58]} {[%emt 00:00:25]} 9. Nxd5 {[%clk 00:14:44]} {[%emt
00:01:32]} Nxe4 {[%clk 00:14:43]} {[%emt 00:03:20]} 10. Qf3+ {[%clk 00:14:15]}
{[%emt 00:00:34]} Nf6 {[%clk 00:14:40]} {[%emt 00:00:08]} 11. Nxf6 {[%clk
00:13:47]} {[%emt 00:00:33]} Bxf6 {[%clk 00:14:25]} {[%emt 00:00:19]} 12. Qxb7+
{[%clk 00:13:47]} {[%emt 00:00:05]} Nd7 {[%clk 00:13:18]} {[%emt 00:01:12]} 13.
Bxe6+ {[%clk 00:12:05]} {[%emt 00:01:47]} Kxe6 {[%clk 00:12:56]} {[%emt
00:00:27]} 14. O-O {[%clk 00:11:56]} {[%emt 00:00:14]} Kf7 {[%clk 00:12:22]}
{[%emt 00:00:39]} 15. Qd5+ {[%clk 00:11:53]} {[%emt 00:00:07]} Kf8 {[%clk
00:12:18]} {[%emt 00:00:10]} 16. Qxd6+ {[%clk 00:11:39]} {[%emt 00:00:20]} Qe7
{[%clk 00:12:15]} {[%emt 00:00:07]} 17. Qc6 {[%clk 00:10:26]} {[%emt 00:01:18]}
Kf7 {[%clk 00:12:07]} {[%emt 00:00:13]} 18. Bf4 {[%clk 00:09:19]} {[%emt
00:01:11]} Rhc8 {[%clk 00:11:42]} {[%emt 00:00:32]} 19. Qb5 {[%clk 00:08:00]}
{[%emt 00:01:21]} Kf8 {[%clk 00:09:47]} {[%emt 00:02:03]} 20. Rad1 {[%clk
00:06:44]} {[%emt 00:01:20]} Ne5 {[%clk 00:08:30]} {[%emt 00:01:22]} 21. Rd5
{[%clk 00:05:13]} {[%emt 00:01:36]} Nf7 {[%clk 00:07:48]} {[%emt 00:00:47]} 22.
Rd7 {[%clk 00:03:56]} {[%emt 00:01:21]} Qe6 {[%clk 00:07:02]} {[%emt 00:00:52]}
23. Rfd1 {[%clk 00:02:35]} {[%emt 00:01:25]} Rxc2 {[%clk 00:04:30]} {[%emt
00:02:38]} 24. Qb7 {[%clk 00:02:08]} {[%emt 00:00:32]} Rcc8 {[%clk 00:04:02]}
{[%emt 00:00:33]} 25. Qb4+ {[%clk 00:01:54]} {[%emt 00:00:19]} Be7 {[%clk
00:04:04]} {[%emt 00:00:04]} 26. Qd4 {[%clk 00:01:33]} {[%emt 00:00:22]} Rd8
{[%clk 00:03:04]} {[%emt 00:01:08]} 27. Be3 {[%clk 00:00:53]} {[%emt 00:00:45]}
Bd6 {[%emt 00:00:35]} 28. Rxd8+ {[%clk 00:00:34]} {[%emt 00:00:22]} Rxd8 {[%clk
00:02:39]} {[%emt 00:00:02]} 29. Qa4 {[%clk 00:00:25]} {[%emt 00:00:13]} Rd7
{[%clk 00:01:25]} {[%emt 00:01:21]} 30. Bxa7 {[%clk 00:00:13]} {[%emt
00:00:17]} Qe7 {[%clk 00:01:11]} {[%emt 00:00:19]} 31. Be3 {[%clk 00:00:11]}
{[%emt 00:00:06]} Rd8 {[%clk 00:00:49]} {[%emt 00:00:27]} 32. Qb3 {[%clk
00:00:13]} {[%emt 00:00:04]} Qh4 {[%clk 00:00:42]} {[%emt 00:00:11]} 33. g3
{[%clk 00:00:14]} {[%emt 00:00:05]} Qg4 {[%clk 00:00:44]} {[%emt 00:00:03]} 34.
Re1 {[%clk 00:00:10]} {[%emt 00:00:07]} Ng5 {[%clk 00:00:41]} {[%emt 00:00:09]}
35. Bxg5 {[%clk 00:00:12]} {[%emt 00:00:04]} Qxg5 {[%clk 00:00:43]} {[%emt
00:00:02]} 36. Qf3+ {[%clk 00:00:16]} {[%emt 00:00:01]} Kg8 {[%clk 00:00:38]}
{[%emt 00:00:11]} 37. b3 {[%clk 00:00:13]} {[%emt 00:00:08]} Qa5 {[%clk
00:00:32]} {[%emt 00:00:11]} 38. Qe2 {[%clk 00:00:11]} {[%emt 00:00:07]} Bb4
{[%clk 00:00:25]} {[%emt 00:00:11]} 39. Qc4+ {[%clk 00:00:14]} {[%emt
00:00:03]} Kf8 {[%clk 00:00:26]} {[%emt 00:00:04]} 40. Rc1 {[%clk 00:00:12]}
{[%emt 00:00:05]} Re8 {[%clk 00:00:22]} {[%emt 00:00:11]} 41. Kg2 {[%clk
00:00:11]} {[%emt 00:00:05]} Be7 {[%clk 00:00:20]} {[%emt 00:00:07]} 42. Qf4+
{[%clk 00:00:15]} {[%emt 00:00:01]} Bf6 {[%clk 00:00:24]} {[%emt 00:00:02]} 43.
a4 {[%clk 00:00:16]} {[%emt 00:00:04]} Rb8 {[%clk 00:00:22]} {[%emt 00:00:06]}
44. Qxb8+ {[%clk 00:00:19]} {[%emt 00:00:02]} Kf7 {[%clk 00:00:25]} {[%emt
00:00:02]} 45. Rc7+ {[%clk 00:00:23]} {[%emt 00:00:01]} Kg6 {[%clk 00:00:29]}
{[%emt 00:00:01]} 46. Qe8+ {[%clk 00:00:23]} {[%emt 00:00:05]} Kf5 {[%clk
00:00:28]} {[%emt 00:00:07]} 47. Rc4 {[%clk 00:00:19]} {[%emt 00:00:08]} Qd5+
{[%clk 00:00:29]} {[%emt 00:00:04]} 48. Kf1 {[%clk 00:00:16]} {[%emt 00:00:04]}
Qd1+ {[%clk 00:00:29]} {[%emt 00:00:09]} 49. Qe1 {[%clk 00:00:19]} {[%emt
00:00:02]} Qd3+ {[%clk 00:00:32]} {[%emt 00:00:02]} 50. Kg1 {[%clk 00:00:20]}
{[%emt 00:00:03]} Qxb3 {[%clk 00:00:31]} {[%emt 00:00:07]} 51. Rc5+ {[%clk
00:00:18]} {[%emt 00:00:07]} Kg6 {[%clk 00:00:34]} {[%emt 00:00:03]} 52. Qe4+
{[%clk 00:00:19]} {[%emt 00:00:03]} Kf7 {[%clk 00:00:32]} {[%emt 00:00:08]} 53.
Qc4+ {[%clk 00:00:11]} {[%emt 00:00:12]} Qxc4 {[%clk 00:00:33]} {[%emt
00:00:04]} 54. Rxc4 {[%clk 00:00:16]} {[%emt 00:00:01]} Ke6 {[%clk 00:00:30]}
{[%emt 00:00:08]} 55. Kf1 {[%clk 00:00:18]} {[%emt 00:00:03]} Kd5 {[%clk
00:00:34]} {[%emt 00:00:01]} 56. Rc2 {[%clk 00:00:17]} {[%emt 00:00:05]} h6
{[%clk 00:00:35]} {[%emt 00:00:04]} 57. Ke2 {[%clk 00:00:21]} {[%emt 00:00:02]}
Kd4 {[%clk 00:00:38]} {[%emt 00:00:01]} 58. a5 {[%clk 00:00:22]} {[%emt
00:00:05]} Kd5 {[%clk 00:00:35]} {[%emt 00:00:08]} 59. a6 {[%clk 00:00:24]}
{[%emt 00:00:02]} Bd4 {[%clk 00:00:39]} {[%emt 00:00:01]} 60. Rd2 {[%clk
00:00:28]} {[%emt 00:00:01]} Ke5 {[%clk 00:00:40]} {[%emt 00:00:05]} 61. Rxd4
{[%clk 00:00:30]} {[%emt 00:00:02]} Kxd4 {[%clk 00:00:44]} {[%emt 00:00:01]} 62.
a7 {[%clk 00:00:35]} {[%emt 00:00:03]} 1-0

[Event "MCR rapid mládeže 2023 U16"]
[Site "Harachov, Czech Republic"]
[Date "2023.09.09"]
[Round "2.27"]
[White "Hujova, Tess"]
[Black "Kusova, Nikola"]
[Result "1-0"]
[TimeControl "20min+5s/move"]
[WhiteElo "1104"]
[BlackElo "1247"]

1. b4 {[%clk 00:20:08]} {[%emt 00:00:02]} d5 {[%clk 00:20:03]} {[%emt
00:00:07]} 2. Bb2 {[%clk 00:20:09]} {[%emt 00:00:04]} Nf6 {[%clk 00:19:20]}
{[%emt 00:00:48]} 3. Nf3 {[%clk 00:20:04]} {[%emt 00:00:09]} Bf5 {[%clk
00:18:19]} {[%emt 00:01:05]} 4. e3 {[%clk 00:19:45]} {[%emt 00:00:26]} e6
{[%clk 00:17:57]} {[%emt 00:00:26]} 5. a3 {[%clk 00:19:41]} {[%emt 00:00:10]}
Nbd7 {[%clk 00:16:23]} {[%emt 00:01:38]} 6. c4 {[%clk 00:17:47]} {[%emt
00:01:59]} dxc4 {[%clk 00:13:18]} {[%emt 00:03:10]} 7. Bxc4 {[%clk 00:17:37]}
{[%emt 00:00:15]} Nb6 {[%clk 00:12:46]} {[%emt 00:00:37]} 8. Bb3 {[%clk
00:17:02]} {[%emt 00:00:40]} Bd3 {[%clk 00:10:05]} {[%emt 00:02:46]} 9. Bc2
{[%clk 00:15:19]} {[%emt 00:01:48]} Nc4 {[%clk 00:08:18]} {[%emt 00:01:52]} 10.
Bd4 {[%clk 00:13:55]} {[%emt 00:01:28]} Bg6 {[%clk 00:05:54]} {[%emt 00:02:26]}
11. Bxg6 {[%clk 00:12:58]} {[%emt 00:01:06]} hxg6 {[%clk 00:05:54]} {[%emt
00:00:04]} 12. Qc2 {[%clk 00:11:43]} {[%emt 00:01:20]} Nd6 {[%clk 00:04:57]}
{[%emt 00:01:03]} 13. d3 {[%clk 00:10:55]} {[%emt 00:00:52]} Nf5 {[%clk
00:02:19]} {[%emt 00:02:44]} 14. Bb2 {[%clk 00:09:59]} Be7 {[%clk 00:01:13]}
{[%emt 00:02:12]} 15. e4 {[%clk 00:09:21]} Nh4 {[%clk 00:00:39]} {[%emt
00:01:22]} 16. Nxh4 {[%clk 00:08:19]} Rxh4 {[%clk 00:00:42]} {[%emt 00:01:09]}
17. Nd2 {[%clk 00:07:33]} Qd7 {[%clk 00:00:21]} {[%emt 00:01:18]} 18. Nf3
{[%clk 00:07:15]} Rh5 {[%clk 00:00:16]} {[%emt 00:00:28]} 19. Ne5 {[%clk
00:07:00]} Qd6 {[%clk 00:00:18]} {[%emt 00:00:26]} 20. Nc4 {[%clk 00:06:38]}
Qd7 {[%clk 00:00:21]} {[%emt 00:00:29]} 21. h3 {[%clk 00:06:12]} {[%emt
00:00:31]} O-O-O {[%clk 00:00:23]} {[%emt 00:00:04]} 22. Rd1 {[%clk 00:05:49]}
{[%emt 00:00:27]} Kb8 {[%clk 00:00:11]} {[%emt 00:00:17]} 23. O-O {[%clk
00:05:26]} {[%emt 00:00:28]} Rg5 {[%clk 00:00:14]} {[%emt 00:00:02]} 24. f4
{[%clk 00:05:18]} {[%emt 00:00:13]} Rh5 {[%clk 00:00:16]} {[%emt 00:00:03]} 25.
Ne5 {[%clk 00:05:02]} {[%emt 00:00:21]} Qe8 {[%clk 00:00:19]} {[%emt 00:00:02]}
26. Rc1 {[%clk 00:04:32]} {[%emt 00:00:36]} c6 {[%clk 00:00:21]} {[%emt
00:00:02]} 27. Qc3 {[%clk 00:03:45]} {[%emt 00:00:53]} Ka8 {[%clk 00:00:09]}
{[%emt 00:00:17]} 28. Rc2 {[%clk 00:03:23]} {[%emt 00:00:26]} Bd6 {[%clk
00:00:13]} {[%emt 00:00:01]} 29. Rfc1 {[%clk 00:03:17]} {[%emt 00:00:11]} Bxe5
{[%clk 00:00:16]} {[%emt 00:00:02]} 30. fxe5 {[%clk 00:03:19]} {[%emt
00:00:03]} Nd7 {[%clk 00:00:19]} {[%emt 00:00:02]} 31. Rf1 {[%clk 00:02:53]}
{[%emt 00:00:30]} Nxe5 {[%clk 00:00:21]} {[%emt 00:00:04]} 32. d4 {[%clk
00:02:45]} {[%emt 00:00:13]} Nd7 {[%clk 00:00:20]} {[%emt 00:00:07]} 33. Rcf2
{[%clk 00:02:43]} {[%emt 00:00:07]} f6 {[%clk 00:00:23]} {[%emt 00:00:02]} 34.
Kh2 {[%clk 00:02:27]} {[%emt 00:00:20]} Nb6 {[%clk 00:00:25]} {[%emt 00:00:03]}
35. g4 {[%clk 00:02:23]} {[%emt 00:00:09]} Rh4 {[%clk 00:00:29]} {[%emt
00:00:01]} 36. Qg3 {[%clk 00:02:15]} {[%emt 00:00:13]} Rh8 {[%clk 00:00:26]}
{[%emt 00:00:08]} 37. Qc7 {[%clk 00:02:13]} {[%emt 00:00:07]} Qd7 {[%clk
00:00:28]} {[%emt 00:00:04]} 38. Qg3 {[%clk 00:02:10]} {[%emt 00:00:07]} Na4
{[%clk 00:00:19]} {[%emt 00:00:15]} 39. Ba1 {[%clk 00:02:09]} {[%emt 00:00:05]}
Qd6 {[%clk 00:00:15]} {[%emt 00:00:10]} 40. Qxd6 {[%clk 00:01:44]} {[%emt
00:00:30]} Rxd6 {[%clk 00:00:19]} {[%emt 00:00:01]} 41. e5 {[%clk 00:01:41]}
{[%emt 00:00:08]} fxe5 {[%clk 00:00:22]} {[%emt 00:00:01]} 42. Rf8+ {[%clk
00:01:45]} {[%emt 00:00:01]} Rd8 {[%clk 00:00:26]} 43. Rxh8 {[%clk 00:01:37]}
{[%emt 00:00:13]} Rxh8 {[%clk 00:00:30]} 44. dxe5 {[%clk 00:01:38]} {[%emt
00:00:05]} Rd8 {[%clk 00:00:33]} {[%emt 00:00:01]} 45. Kg1 {[%clk 00:01:27]}
{[%emt 00:00:17]} a6 {[%clk 00:00:24]} {[%emt 00:00:14]} 46. h4 {[%clk
00:01:27]} {[%emt 00:00:05]} Nb6 {[%clk 00:00:25]} {[%emt 00:00:04]} 47. h5
{[%clk 00:01:18]} {[%emt 00:00:15]} gxh5 {[%clk 00:00:28]} {[%emt 00:00:02]} 48.
gxh5 {[%clk 00:01:16]} {[%emt 00:00:06]} Ka7 {[%clk 00:00:27]} {[%emt
00:00:06]} 49. Kh2 {[%clk 00:00:59]} {[%emt 00:00:21]} Rd2+ {[%clk 00:00:31]}
{[%emt 00:00:02]} 50. Kg3 {[%clk 00:01:02]} {[%emt 00:00:02]} Nd5 {[%clk
00:00:32]} {[%emt 00:00:05]} 51. Rf3 {[%clk 00:00:45]} {[%emt 00:00:20]} Rd1
{[%clk 00:00:22]} {[%emt 00:00:16]} 52. Bb2 {[%clk 00:00:41]} {[%emt 00:00:06]}
Rd2 {[%clk 00:00:25]} {[%emt 00:00:06]} 53. Bc1 {[%clk 00:00:42]} {[%emt
00:00:04]} Rc2 {[%emt 00:00:08]} 54. Bg5 {[%clk 00:00:35]} {[%emt 00:00:02]}
Ra2 {[%clk 00:00:20]} {[%emt 00:00:16]} 55. Bd8 {[%clk 00:00:39]} {[%emt
00:00:02]} Nb6 {[%clk 00:00:21]} {[%emt 00:00:04]} 56. Kf4 {[%clk 00:00:28]}
{[%emt 00:00:15]} Nd5+ {[%clk 00:00:21]} {[%emt 00:00:06]} 57. Ke4 {[%clk
00:00:28]} {[%emt 00:00:02]} Re2+ {[%clk 00:00:14]} {[%emt 00:00:14]} 58. Kd3
{[%clk 00:00:31]} {[%emt 00:00:02]} Ra2 {[%clk 00:00:17]} {[%emt 00:00:03]} 59.
Kc4 {[%clk 00:00:33]} {[%emt 00:00:02]} Rc2+ {[%clk 00:00:19]} {[%emt
00:00:02]} 60. Kb3 {[%clk 00:00:37]} {[%emt 00:00:02]} Re2 {[%clk 00:00:20]}
{[%emt 00:00:04]} 61. Rg3 {[%clk 00:00:12]} {[%emt 00:00:31]} Re3+ {[%clk
00:00:23]} {[%emt 00:00:01]} 62. Rxe3 {[%clk 00:00:14]} {[%emt 00:00:02]} Nxe3
{[%clk 00:00:27]} {[%emt 00:00:02]} 63. Be7 {[%clk 00:00:16]} {[%emt 00:00:03]}
Ng4 {[%clk 00:00:30]} {[%emt 00:00:02]} 64. Bd6 {[%clk 00:00:19]} {[%emt
00:00:02]} b6 {[%clk 00:00:31]} {[%emt 00:00:05]} 65. Kc4 {[%clk 00:00:21]}
{[%emt 00:00:02]} Ne3+ {[%clk 00:00:33]} {[%emt 00:00:04]} 66. Kd4 {[%clk
00:00:24]} {[%emt 00:00:02]} Nc2+ {[%clk 00:00:36]} {[%emt 00:00:01]} 67. Kc3
{[%clk 00:00:26]} {[%emt 00:00:02]} Nxa3 {[%emt 00:00:04]} 68. Kd3 {[%clk
00:00:27]} {[%emt 00:00:02]} Nb5 {[%clk 00:00:43]} {[%emt 00:00:02]} 69. Ke4
{[%clk 00:00:26]} {[%emt 00:00:05]} Kb7 {[%clk 00:00:45]} {[%emt 00:00:04]} 70.
Bf8 {[%clk 00:00:27]} {[%emt 00:00:04]} Nc3+ {[%clk 00:00:47]} {[%emt
00:00:04]} 71. Kd4 {[%clk 00:00:30]} {[%emt 00:00:01]} Nb5+ {[%clk 00:00:51]}
{[%emt 00:00:01]} 72. Ke4 {[%clk 00:00:34]} {[%emt 00:00:01]} a5 {[%clk
00:00:47]} {[%emt 00:00:09]} 73. bxa5 {[%clk 00:00:36]} {[%emt 00:00:03]} bxa5
{[%clk 00:00:51]} {[%emt 00:00:01]} 74. Bxg7 {[%clk 00:00:39]} {[%emt
00:00:01]} Nc3+ {[%clk 00:00:55]} {[%emt 00:00:02]} 75. Kd4 {[%clk 00:00:42]}
{[%emt 00:00:01]} Nb5+ {[%clk 00:00:59]} {[%emt 00:00:02]} 76. Kc4 {[%clk
00:00:46]} {[%emt 00:00:01]} Nc7 {[%clk 00:00:50]} {[%emt 00:00:13]} 77. h6
{[%clk 00:00:49]} {[%emt 00:00:02]} Na8 {[%clk 00:00:49]} {[%emt 00:00:07]} 78.
h7 {[%clk 00:00:51]} {[%emt 00:00:02]} Nb6+ {[%clk 00:00:53]} {[%emt 00:00:01]}
79. Kb3 {[%clk 00:00:55]} {[%emt 00:00:01]} a4+ {[%clk 00:00:57]} {[%emt
00:00:01]} 80. Ka3 {[%clk 00:00:59]} {[%emt 00:00:02]} Nc4+ {[%clk 00:01:01]}
{[%emt 00:00:01]} 81. Kxa4 {[%clk 00:01:02]} Nb6+ {[%clk 00:01:05]} {[%emt
00:00:01]} 82. Kb4 {[%clk 00:01:05]} {[%emt 00:00:02]} Nd5+ {[%clk 00:01:09]}
{[%emt 00:00:02]} 83. Kb3 {[%clk 00:01:07]} {[%emt 00:00:02]} 1-0